[Event "Late-Titled-Tuesday-Blitz-August-29-2023"]
[Site "Chess.com"]
[Date "2023.08.29"]
[Round "10"]
[White "Fandorine"]
[Black "jefferyx"]
[Result "0-1"]
[WhiteElo "2927"]
[BlackElo "3029"]
[TimeControl "180+1"]
[EndTime "15:52:14 PDT"]
[Termination "jefferyx won by resignation"]

1. e4 {[%clk 0:03:00.9]} 1... e5 {[%clk 0:02:59.4]} 2. Nf3 {[%clk 0:03:01.1]}
2... Nc6 {[%clk 0:03:00.1]} 3. Bc4 {[%clk 0:03:01.2]} 3... Nf6 {[%clk
0:03:00.1]} 4. d3 {[%clk 0:03:01.6]} 4... Bc5 {[%clk 0:03:00.3]} 5. c3 {[%clk
0:03:02.3]} 5... O-O {[%clk 0:03:00.5]} 6. Bg5 {[%clk 0:03:02.5]} 6... h6 {[%clk
0:02:59.8]} 7. Bh4 {[%clk 0:03:02.3]} 7... Be7 {[%clk 0:02:58]} 8. Nbd2 {[%clk
0:03:02.2]} 8... d6 {[%clk 0:02:56.8]} 9. a4 {[%clk 0:03:01.3]} 9... Kh8 {[%clk
0:02:56.5]} 10. O-O {[%clk 0:02:59.7]} 10... Ng8 {[%clk 0:02:56.7]} 11. Bg3
{[%clk 0:02:47.9]} 11... f5 {[%clk 0:02:56.8]} 12. exf5 {[%clk 0:02:47.8]} 12...
Bxf5 {[%clk 0:02:57.7]} 13. Re1 {[%clk 0:02:48.1]} 13... Nf6 {[%clk 0:02:47.7]}
14. a5 {[%clk 0:02:03.8]} 14... a6 {[%clk 0:02:47.9]} 15. h3 {[%clk 0:02:00.7]}
15... Bh7 {[%clk 0:02:47.7]} 16. Nf1 {[%clk 0:01:52.8]} 16... Qd7 {[%clk
0:02:35.7]} 17. d4 {[%clk 0:01:45.8]} 17... e4 {[%clk 0:02:18]} 18. N3d2 {[%clk
0:01:44.3]} 18... d5 {[%clk 0:02:18.3]} 19. Be2 {[%clk 0:01:42.3]} 19... Bd6
{[%clk 0:02:15.6]} 20. Ne3 {[%clk 0:01:19.7]} 20... Bxg3 {[%clk 0:02:11.6]} 21.
fxg3 {[%clk 0:01:20.6]} 21... Qd6 {[%clk 0:02:11.6]} 22. Ndf1 {[%clk 0:01:21.3]}
22... Ne7 {[%clk 0:01:57.6]} 23. Qb3 {[%clk 0:01:19.8]} 23... c5 {[%clk
0:01:47.9]} 24. Qa3 {[%clk 0:01:17.4]} 24... Rac8 {[%clk 0:01:41.8]} 25. Rad1
{[%clk 0:01:16.6]} 25... Qc7 {[%clk 0:01:37.9]} 26. dxc5 {[%clk 0:01:07.6]}
26... Qxc5 {[%clk 0:01:38.8]} 27. Qxc5 {[%clk 0:01:07.9]} 27... Rxc5 {[%clk
0:01:39.7]} 28. c4 {[%clk 0:00:32.1]} 28... dxc4 {[%clk 0:01:40.6]} 29. Nxc4
{[%clk 0:00:29.3]} 29... Nc6 {[%clk 0:01:40.8]} 30. Nfe3 {[%clk 0:00:25.4]}
30... Bg8 {[%clk 0:01:33.7]} 31. Nd6 {[%clk 0:00:21.9]} 31... Rxa5 {[%clk
0:01:33.7]} 32. Nxb7 {[%clk 0:00:21.3]} 32... Ra2 {[%clk 0:01:34.1]} 33. Rd6
{[%clk 0:00:15.2]} 33... Nb4 {[%clk 0:01:29.6]} 34. Nc5 {[%clk 0:00:15.7]} 34...
a5 {[%clk 0:01:17.6]} 35. Rb1 {[%clk 0:00:08.4]} 35... Rc8 {[%clk 0:01:14.9]}
36. Ne6 {[%clk 0:00:07.8]} 36... Nd3 {[%clk 0:01:11.9]} 37. Bxd3 {[%clk
0:00:06.5]} 37... exd3 {[%clk 0:01:12.8]} 38. Nf4 {[%clk 0:00:07]} 38... Bh7
{[%clk 0:01:11.2]} 39. Nxd3 {[%clk 0:00:06.2]} 39... Ne4 {[%clk 0:01:11.6]} 40.
Rd7 {[%clk 0:00:05.5]} 40... Nxg3 {[%clk 0:01:11.2]} 41. Nf4 {[%clk 0:00:04.9]}
41... Bxb1 {[%clk 0:01:10.4]} 0-1

[Event "Late-Titled-Tuesday-Blitz-August-29-2023"]
[Site "Chess.com"]
[Date "2023.08.29"]
[Round "10"]
[White "betta2004"]
[Black "YEIKO2017"]
[Result "1/2-1/2"]
[WhiteElo "2571"]
[BlackElo "2478"]
[TimeControl "180+1"]
[EndTime "15:52:17 PDT"]
[Termination "Game drawn - insufficient material"]

1. d4 {[%clk 0:03:00.9]} 1... Nf6 {[%clk 0:02:58.8]} 2. Nc3 {[%clk 0:03:01.8]}
2... d5 {[%clk 0:02:58.2]} 3. Bf4 {[%clk 0:03:02.4]} 3... c6 {[%clk 0:02:57.2]}
4. e3 {[%clk 0:03:00.4]} 4... g6 {[%clk 0:02:57.6]} 5. h4 {[%clk 0:02:59.8]}
5... h5 {[%clk 0:02:57.1]} 6. Be2 {[%clk 0:02:58.6]} 6... Bg7 {[%clk 0:02:56.9]}
7. Nf3 {[%clk 0:02:59.5]} 7... Bg4 {[%clk 0:02:55.8]} 8. Ne5 {[%clk 0:02:59.6]}
8... Bxe2 {[%clk 0:02:54.1]} 9. Qxe2 {[%clk 0:03:00.5]} 9... Nfd7 {[%clk
0:02:52.6]} 10. f3 {[%clk 0:02:57.5]} 10... Nxe5 {[%clk 0:02:51.6]} 11. dxe5
{[%clk 0:02:57.9]} 11... Nd7 {[%clk 0:02:48.5]} 12. e4 {[%clk 0:02:58.3]} 12...
d4 {[%clk 0:02:46.7]} 13. Nd1 {[%clk 0:02:51.9]} 13... Nxe5 {[%clk 0:02:45.5]}
14. Bxe5 {[%clk 0:02:52.1]} 14... Bxe5 {[%clk 0:02:44.9]} 15. Nf2 {[%clk
0:02:52.2]} 15... Qa5+ {[%clk 0:02:42.4]} 16. Kf1 {[%clk 0:02:50.2]} 16... O-O-O
{[%clk 0:02:30]} 17. Nd3 {[%clk 0:02:50.2]} 17... Bg7 {[%clk 0:02:26.9]} 18. b4
{[%clk 0:02:48.8]} 18... Qb5 {[%clk 0:02:22.5]} 19. a4 {[%clk 0:02:48.6]} 19...
Qc4 {[%clk 0:02:22.7]} 20. b5 {[%clk 0:02:48.9]} 20... c5 {[%clk 0:02:21.9]} 21.
Kf2 {[%clk 0:02:47.9]} 21... Bh6 {[%clk 0:02:09.6]} 22. g3 {[%clk 0:02:45.1]}
22... Be3+ {[%clk 0:02:09]} 23. Kg2 {[%clk 0:02:45.6]} 23... f6 {[%clk
0:02:06.6]} 24. Rhb1 {[%clk 0:02:43.6]} 24... g5 {[%clk 0:02:04.8]} 25. hxg5
{[%clk 0:02:39.7]} 25... h4 {[%clk 0:01:59.5]} 26. a5 {[%clk 0:02:38.8]} 26...
hxg3 {[%clk 0:01:57.1]} 27. Kxg3 {[%clk 0:02:38.8]} 27... Rdg8 {[%clk
0:01:53.9]} 28. f4 {[%clk 0:02:37.7]} 28... Qe6 {[%clk 0:01:50.4]} 29. Qg4
{[%clk 0:02:34]} 29... Qxg4+ {[%clk 0:01:33.5]} 30. Kxg4 {[%clk 0:02:34.9]}
30... fxg5 {[%clk 0:01:31.8]} 31. f5 {[%clk 0:02:35.1]} 31... Rh4+ {[%clk
0:01:31.7]} 32. Kf3 {[%clk 0:02:35.7]} 32... g4+ {[%clk 0:01:29.9]} 33. Kg2
{[%clk 0:02:35.9]} 33... Rgh8 {[%clk 0:01:19.2]} 34. Rh1 {[%clk 0:02:31.4]}
34... Rxh1 {[%clk 0:01:17.5]} 35. Rxh1 {[%clk 0:02:32.3]} 35... Rxh1 {[%clk
0:01:17]} 36. Kxh1 {[%clk 0:02:31.7]} 36... c4 {[%clk 0:01:17.3]} 37. Nb4 {[%clk
0:02:12.4]} 37... Bd2 {[%clk 0:01:08.7]} 38. Nd5 {[%clk 0:02:12.4]} 38... d3
{[%clk 0:01:05.6]} 39. cxd3 {[%clk 0:02:12.3]} 39... c3 {[%clk 0:01:05.9]} 40.
Nb4 {[%clk 0:02:12.2]} 40... Kd7 {[%clk 0:01:01.3]} 41. e5 {[%clk 0:02:08.6]}
41... Bf4 {[%clk 0:00:55.1]} 42. d4 {[%clk 0:02:07]} 42... Be3 {[%clk
0:00:51.8]} 43. Nc2 {[%clk 0:02:07.5]} 43... Bf2 {[%clk 0:00:51.8]} 44. Kg2
{[%clk 0:02:07.8]} 44... g3 {[%clk 0:00:52.5]} 45. Kf3 {[%clk 0:02:08.2]} 45...
a6 {[%clk 0:00:50.9]} 46. bxa6 {[%clk 0:02:07.3]} 46... bxa6 {[%clk 0:00:51.2]}
47. d5 {[%clk 0:02:07.3]} 47... Ke8 {[%clk 0:00:47.1]} 48. Nb4 {[%clk
0:01:51.5]} 48... Kf7 {[%clk 0:00:44.9]} 49. Nd3 {[%clk 0:01:43.8]} 49... c2
{[%clk 0:00:44.8]} 50. Ke2 {[%clk 0:01:41.4]} 50... Bd4 {[%clk 0:00:35.1]} 51.
Kf3 {[%clk 0:01:36.2]} 51... Bb2 {[%clk 0:00:34.6]} 52. Kxg3 {[%clk 0:01:33.6]}
52... c1=Q {[%clk 0:00:34.9]} 53. Nxc1 {[%clk 0:01:34.2]} 53... Bxc1 {[%clk
0:00:35.6]} 54. Kf3 {[%clk 0:01:34.9]} 54... Bb2 {[%clk 0:00:32.3]} 55. Ke4
{[%clk 0:01:35.5]} 55... Bc3 {[%clk 0:00:33]} 56. d6 {[%clk 0:01:33.7]} 56...
exd6 {[%clk 0:00:32]} 57. exd6 {[%clk 0:01:34.6]} 57... Bxa5 {[%clk 0:00:31.5]}
58. Kd5 {[%clk 0:01:35.2]} 58... Kf6 {[%clk 0:00:30.6]} 59. Kc6 {[%clk
0:01:34.7]} 59... Bd8 {[%clk 0:00:31.1]} 60. Kd7 {[%clk 0:01:35.1]} 60... Ba5
{[%clk 0:00:30.6]} 61. Kc6 {[%clk 0:01:35.6]} 61... Kxf5 {[%clk 0:00:30.9]} 62.
Kb7 {[%clk 0:01:35.5]} 62... Ke6 {[%clk 0:00:29.9]} 63. Kxa6 {[%clk 0:01:36.4]}
63... Kxd6 {[%clk 0:00:30.2]} 1/2-1/2

[Event "Late-Titled-Tuesday-Blitz-August-29-2023"]
[Site "Chess.com"]
[Date "2023.08.29"]
[Round "10"]
[White "KaydenTroffChess"]
[Black "rdarruda"]
[Result "1-0"]
[WhiteElo "2792"]
[BlackElo "2584"]
[TimeControl "180+1"]
[EndTime "15:52:22 PDT"]
[Termination "KaydenTroffChess won by resignation"]

1. d4 {[%clk 0:03:00.9]} 1... Nf6 {[%clk 0:02:56.9]} 2. Nf3 {[%clk 0:03:01]}
2... g6 {[%clk 0:02:56.3]} 3. Bg5 {[%clk 0:03:00.5]} 3... Bg7 {[%clk 0:02:55.9]}
4. e3 {[%clk 0:03:00.2]} 4... d6 {[%clk 0:02:55.8]} 5. Nbd2 {[%clk 0:02:59.4]}
5... O-O {[%clk 0:02:55.3]} 6. h4 {[%clk 0:02:59.7]} 6... Nh5 {[%clk 0:02:48.2]}
7. Rg1 {[%clk 0:02:28.9]} 7... h6 {[%clk 0:02:43]} 8. g4 {[%clk 0:02:27.9]} 8...
Nf6 {[%clk 0:02:42.5]} 9. Bxf6 {[%clk 0:02:24.6]} 9... exf6 {[%clk 0:02:37.6]}
10. Bd3 {[%clk 0:02:16.3]} 10... Nc6 {[%clk 0:02:28.2]} 11. c3 {[%clk 0:02:16]}
11... Ne7 {[%clk 0:02:23.6]} 12. g5 {[%clk 0:02:03.5]} 12... fxg5 {[%clk
0:02:12.7]} 13. hxg5 {[%clk 0:02:04.4]} 13... h5 {[%clk 0:02:13]} 14. Qc2 {[%clk
0:01:53.7]} 14... c5 {[%clk 0:02:12.3]} 15. O-O-O {[%clk 0:01:50.3]} 15... Qa5
{[%clk 0:02:09]} 16. Kb1 {[%clk 0:01:49]} 16... b5 {[%clk 0:02:07.7]} 17. Ne4
{[%clk 0:00:58]} 17... Be6 {[%clk 0:01:52.8]} 18. Nf6+ {[%clk 0:00:32.1]} 18...
Kh8 {[%clk 0:01:49.4]} 19. d5 {[%clk 0:00:20.7]} 19... Bf5 {[%clk 0:01:39.8]}
20. Bxf5 {[%clk 0:00:19.6]} 20... Nxf5 {[%clk 0:01:39.7]} 21. Nxh5 {[%clk
0:00:19.4]} 21... Qa4 {[%clk 0:01:16.2]} 22. b3 {[%clk 0:00:13.6]} 22... Qa5
{[%clk 0:01:10.2]} 23. Nf6 {[%clk 0:00:13.5]} 23... Qd8 {[%clk 0:00:52.3]} 24.
Qxf5 {[%clk 0:00:13]} 24... gxf5 {[%clk 0:00:47.9]} 25. Rh1+ {[%clk 0:00:13.4]}
25... Bh6 {[%clk 0:00:48.4]} 26. Rxh6+ {[%clk 0:00:14.1]} 26... Kg7 {[%clk
0:00:48.3]} 27. Nh4 {[%clk 0:00:14.8]} 27... Rg8 {[%clk 0:00:40.8]} 28. Nxf5+
{[%clk 0:00:11.4]} 28... Kf8 {[%clk 0:00:41]} 29. Nxg8 {[%clk 0:00:11.5]} 29...
Kxg8 {[%clk 0:00:40.9]} 30. Rdh1 {[%clk 0:00:11.1]} 30... f6 {[%clk 0:00:34.8]}
31. g6 {[%clk 0:00:11.4]} 1-0

[Event "Late-Titled-Tuesday-Blitz-August-29-2023"]
[Site "Chess.com"]
[Date "2023.08.29"]
[Round "10"]
[White "Zq1"]
[Black "Dhaydon19"]
[Result "0-1"]
[WhiteElo "2521"]
[BlackElo "2671"]
[TimeControl "180+1"]
[EndTime "15:52:32 PDT"]
[Termination "Dhaydon19 won by resignation"]

1. d4 {[%clk 0:03:00.9]} 1... b6 {[%clk 0:02:59.3]} 2. c4 {[%clk 0:03:00.1]}
2... Bb7 {[%clk 0:02:59.5]} 3. Nc3 {[%clk 0:02:59.9]} 3... Nf6 {[%clk
0:02:59.9]} 4. d5 {[%clk 0:02:55.8]} 4... e5 {[%clk 0:02:58.2]} 5. g3 {[%clk
0:02:48]} 5... Bb4 {[%clk 0:02:58]} 6. Bd2 {[%clk 0:02:47]} 6... Na6 {[%clk
0:02:57.3]} 7. Bg2 {[%clk 0:02:45.8]} 7... Nc5 {[%clk 0:02:56.3]} 8. Nf3 {[%clk
0:02:43.1]} 8... e4 {[%clk 0:02:52.9]} 9. Nd4 {[%clk 0:02:40.3]} 9... O-O {[%clk
0:02:48.4]} 10. Nc2 {[%clk 0:02:38.4]} 10... Bxc3 {[%clk 0:02:46.1]} 11. Bxc3
{[%clk 0:02:38.6]} 11... Re8 {[%clk 0:02:46.3]} 12. Ne3 {[%clk 0:02:38.5]} 12...
d6 {[%clk 0:02:44.4]} 13. O-O {[%clk 0:02:33.5]} 13... a5 {[%clk 0:02:41.5]} 14.
b3 {[%clk 0:02:32.3]} 14... Bc8 {[%clk 0:02:38]} 15. Qd4 {[%clk 0:02:25.4]}
15... Qe7 {[%clk 0:02:34.7]} 16. Rae1 {[%clk 0:02:23.6]} 16... Bd7 {[%clk
0:02:31.4]} 17. f4 {[%clk 0:02:17.6]} 17... h5 {[%clk 0:02:26.5]} 18. h3 {[%clk
0:02:16.6]} 18... Qf8 {[%clk 0:02:23.8]} 19. f5 {[%clk 0:02:13.3]} 19... Nh7
{[%clk 0:02:05.6]} 20. f6 {[%clk 0:02:07.7]} 20... g6 {[%clk 0:02:03.8]} 21. h4
{[%clk 0:01:56.5]} 21... b5 {[%clk 0:01:59.4]} 22. Rf4 {[%clk 0:01:44.4]} 22...
b4 {[%clk 0:01:56.2]} 23. Bb2 {[%clk 0:01:30.3]} 23... a4 {[%clk 0:01:55.1]} 24.
Qd1 {[%clk 0:01:10.5]} 24... Qh6 {[%clk 0:01:48.9]} 25. Ref1 {[%clk 0:01:07.2]}
25... axb3 {[%clk 0:01:40]} 26. axb3 {[%clk 0:01:06.1]} 26... Ra2 {[%clk
0:01:37.7]} 27. Bd4 {[%clk 0:01:03.6]} 27... Ra3 {[%clk 0:01:36.4]} 28. Bxc5
{[%clk 0:00:54.8]} 28... dxc5 {[%clk 0:01:36.4]} 29. d6 {[%clk 0:00:54.3]} 29...
c6 {[%clk 0:01:35.9]} 30. Qc2 {[%clk 0:00:46.1]} 30... Nxf6 {[%clk 0:01:30.4]}
31. Rxf6 {[%clk 0:00:40.4]} 31... Qxe3+ {[%clk 0:01:27.9]} 32. Kh2 {[%clk
0:00:40.3]} 32... Rxb3 {[%clk 0:01:24.8]} 33. Rxf7 {[%clk 0:00:30.6]} 33...
Qxg3+ {[%clk 0:01:23.3]} 34. Kg1 {[%clk 0:00:30.8]} 34... Bh3 {[%clk 0:01:19.1]}
35. e3 {[%clk 0:00:29.8]} 35... Qxe3+ {[%clk 0:01:13.8]} 36. Kh1 {[%clk
0:00:23.5]} 36... Bxg2+ {[%clk 0:01:07]} 37. Qxg2 {[%clk 0:00:22.8]} 37... Qh3+
{[%clk 0:01:06.4]} 38. Qxh3 {[%clk 0:00:22.9]} 38... Rxh3+ {[%clk 0:01:05.6]}
39. Kg2 {[%clk 0:00:22.8]} 39... Rd3 {[%clk 0:01:06.3]} 40. Re7 {[%clk
0:00:17.3]} 40... Rf8 {[%clk 0:01:02]} 41. Ra1 {[%clk 0:00:13.8]} 41... Rd2+
{[%clk 0:00:59.5]} 42. Kg1 {[%clk 0:00:13.2]} 42... Rf7 {[%clk 0:00:55.7]} 43.
Ra8+ {[%clk 0:00:10.6]} 43... Kg7 {[%clk 0:00:55.9]} 0-1

[Event "Late-Titled-Tuesday-Blitz-August-29-2023"]
[Site "Chess.com"]
[Date "2023.08.29"]
[Round "10"]
[White "Laico"]
[Black "CraiggoryC"]
[Result "0-1"]
[WhiteElo "2376"]
[BlackElo "2240"]
[TimeControl "180+1"]
[EndTime "15:52:37 PDT"]
[Termination "CraiggoryC won by resignation"]

1. e4 {[%clk 0:02:57.4]} 1... e6 {[%clk 0:02:59.8]} 2. d4 {[%clk 0:02:57.2]}
2... d5 {[%clk 0:03:00.4]} 3. Nd2 {[%clk 0:02:57.9]} 3... Be7 {[%clk 0:03:00.4]}
4. Bd3 {[%clk 0:02:57.2]} 4... c5 {[%clk 0:02:57.9]} 5. c3 {[%clk 0:02:57.1]}
5... cxd4 {[%clk 0:02:57.7]} 6. cxd4 {[%clk 0:02:57.3]} 6... dxe4 {[%clk
0:02:56.9]} 7. Nxe4 {[%clk 0:02:58.2]} 7... Nf6 {[%clk 0:02:57.4]} 8. Nf3 {[%clk
0:02:58.5]} 8... Nc6 {[%clk 0:02:56.8]} 9. O-O {[%clk 0:02:58.7]} 9... O-O
{[%clk 0:02:56.8]} 10. Be3 {[%clk 0:02:52.5]} 10... b6 {[%clk 0:02:44.7]} 11.
Bb1 {[%clk 0:02:49.3]} 11... Bb7 {[%clk 0:02:41.9]} 12. Qd3 {[%clk 0:02:48.7]}
12... g6 {[%clk 0:02:37.8]} 13. a3 {[%clk 0:02:48]} 13... a5 {[%clk 0:02:20.6]}
14. Rc1 {[%clk 0:02:46.2]} 14... a4 {[%clk 0:02:18.1]} 15. Nxf6+ {[%clk
0:02:40.7]} 15... Bxf6 {[%clk 0:02:16.7]} 16. Ba2 {[%clk 0:02:41]} 16... Na5
{[%clk 0:02:12.3]} 17. Qb5 {[%clk 0:02:34.5]} 17... Bd5 {[%clk 0:01:43.2]} 18.
Bxd5 {[%clk 0:02:23.3]} 18... Qxd5 {[%clk 0:01:42.2]} 19. Qxd5 {[%clk
0:02:17.7]} 19... exd5 {[%clk 0:01:43.1]} 20. Rc7 {[%clk 0:02:15.4]} 20... Rfc8
{[%clk 0:01:14.1]} 21. Rac1 {[%clk 0:02:09.6]} 21... Nc4 {[%clk 0:01:13.8]} 22.
Rxc8+ {[%clk 0:02:03.2]} 22... Rxc8 {[%clk 0:01:12.2]} 23. Rc2 {[%clk
0:01:57.6]} 23... Kf8 {[%clk 0:00:56.4]} 24. Bh6+ {[%clk 0:01:38.3]} 24... Ke7
{[%clk 0:00:48.7]} 25. Ne5 {[%clk 0:01:35.8]} 25... Bxe5 {[%clk 0:00:35.5]} 26.
dxe5 {[%clk 0:01:35.5]} 26... Rc5 {[%clk 0:00:20.6]} 27. Bc1 {[%clk 0:01:28.4]}
27... Nxe5 {[%clk 0:00:19.6]} 28. Rxc5 {[%clk 0:01:22.9]} 28... bxc5 {[%clk
0:00:19.7]} 29. Kf1 {[%clk 0:01:19.7]} 29... Nd3 {[%clk 0:00:19.5]} 30. Be3
{[%clk 0:01:14.2]} 30... d4 {[%clk 0:00:19.6]} 31. Bg5+ {[%clk 0:01:13.9]} 31...
f6 {[%clk 0:00:19.7]} 32. Bh6 {[%clk 0:01:11.7]} 32... Nxb2 {[%clk 0:00:19]} 33.
Ke2 {[%clk 0:01:12]} 33... Nc4 {[%clk 0:00:19]} 34. Bc1 {[%clk 0:01:10]} 34...
Kd6 {[%clk 0:00:18.7]} 35. Kd3 {[%clk 0:01:03.9]} 35... Kd5 {[%clk 0:00:19.1]}
36. f4 {[%clk 0:01:01]} 36... Nd6 {[%clk 0:00:19.1]} 37. Bd2 {[%clk 0:00:57.3]}
37... c4+ {[%clk 0:00:18]} 38. Kc2 {[%clk 0:00:57.7]} 38... c3 {[%clk
0:00:16.4]} 39. Bxc3 {[%clk 0:00:57.7]} 39... dxc3 {[%clk 0:00:16.5]} 40. Kxc3
{[%clk 0:00:58.6]} 40... Nb5+ {[%clk 0:00:12.8]} 41. Kb4 {[%clk 0:00:58.7]}
41... Nxa3 {[%clk 0:00:13.5]} 42. Kxa3 {[%clk 0:00:57.9]} 42... Ke4 {[%clk
0:00:14.1]} 43. g3 {[%clk 0:00:55.9]} 43... Kf3 {[%clk 0:00:14]} 44. Kxa4 {[%clk
0:00:56.5]} 44... Kg2 {[%clk 0:00:14.5]} 45. Kb5 {[%clk 0:00:57]} 45... Kxh2
{[%clk 0:00:14.6]} 46. g4 {[%clk 0:00:55.5]} 46... Kg3 {[%clk 0:00:14.7]} 47. g5
{[%clk 0:00:55.5]} 47... fxg5 {[%clk 0:00:14]} 48. f5 {[%clk 0:00:55.6]} 48...
gxf5 {[%clk 0:00:14]} 0-1

[Event "Late-Titled-Tuesday-Blitz-August-29-2023"]
[Site "Chess.com"]
[Date "2023.08.29"]
[Round "10"]
[White "Schwindle"]
[Black "NotFischer"]
[Result "1-0"]
[WhiteElo "2396"]
[BlackElo "2261"]
[TimeControl "180+1"]
[EndTime "15:52:44 PDT"]
[Termination "Schwindle won on time"]

1. e4 {[%clk 0:03:00.9]} 1... d5 {[%clk 0:02:59.5]} 2. exd5 {[%clk 0:03:00.9]}
2... Qxd5 {[%clk 0:03:00.4]} 3. Nc3 {[%clk 0:03:01.5]} 3... Qd6 {[%clk
0:03:00.5]} 4. Nf3 {[%clk 0:03:02.1]} 4... Nf6 {[%clk 0:03:00.5]} 5. d4 {[%clk
0:03:02.2]} 5... c6 {[%clk 0:03:00.4]} 6. Bc4 {[%clk 0:03:02.1]} 6... Bf5 {[%clk
0:02:59.3]} 7. Ne5 {[%clk 0:02:59.1]} 7... e6 {[%clk 0:02:53.9]} 8. Bf4 {[%clk
0:02:58.7]} 8... Qb4 {[%clk 0:02:45.3]} 9. Bb3 {[%clk 0:02:49]} 9... Nbd7 {[%clk
0:02:42.4]} 10. O-O {[%clk 0:02:42.4]} 10... Nxe5 {[%clk 0:02:41.9]} 11. Bxe5
{[%clk 0:02:42.9]} 11... Be7 {[%clk 0:02:38.8]} 12. a3 {[%clk 0:02:31.2]} 12...
Qa5 {[%clk 0:02:38.2]} 13. Re1 {[%clk 0:02:27.9]} 13... O-O {[%clk 0:02:36]} 14.
h3 {[%clk 0:02:26.6]} 14... Bg6 {[%clk 0:02:35.4]} 15. Qf3 {[%clk 0:02:25.2]}
15... Rfe8 {[%clk 0:02:30.3]} 16. Rad1 {[%clk 0:02:16]} 16... Rad8 {[%clk
0:02:27.4]} 17. Qg3 {[%clk 0:02:10.8]} 17... Rd7 {[%clk 0:02:08]} 18. Bxf6
{[%clk 0:01:56]} 18... Bxf6 {[%clk 0:02:05.7]} 19. d5 {[%clk 0:01:54.9]} 19...
Bxc3 {[%clk 0:01:39.2]} 20. dxe6 {[%clk 0:01:01.4]} 20... fxe6 {[%clk
0:01:02.9]} 21. bxc3 {[%clk 0:00:44.8]} 21... Rxd1 {[%clk 0:00:54.9]} 22. Rxd1
{[%clk 0:00:44.2]} 22... Qxa3 {[%clk 0:00:27.5]} 23. Qc7 {[%clk 0:00:32.8]}
23... Qa6 {[%clk 0:00:11.6]} 24. Rd8 {[%clk 0:00:16.7]} 24... Qa1+ {[%clk
0:00:11]} 25. Kh2 {[%clk 0:00:16.4]} 25... Qxc3 {[%clk 0:00:06.2]} 26. Bxe6+
{[%clk 0:00:13.1]} 26... Kh8 {[%clk 0:00:01.9]} 27. Qd6 {[%clk 0:00:13]} 1-0

[Event "Late-Titled-Tuesday-Blitz-August-29-2023"]
[Site "Chess.com"]
[Date "2023.08.29"]
[Round "10"]
[White "vi_pranav"]
[Black "MarcoRiehle"]
[Result "1-0"]
[WhiteElo "2960"]
[BlackElo "2839"]
[TimeControl "180+1"]
[EndTime "15:52:46 PDT"]
[Termination "vi_pranav won by resignation"]

1. e4 {[%clk 0:03:00.9]} 1... e5 {[%clk 0:02:59]} 2. Nf3 {[%clk 0:03:01.1]} 2...
Nf6 {[%clk 0:02:48.6]} 3. Nxe5 {[%clk 0:02:59]} 3... Nxe4 {[%clk 0:02:48.5]} 4.
Bd3 {[%clk 0:02:53.3]} 4... Qe7 {[%clk 0:02:47.1]} 5. Bxe4 {[%clk 0:02:53.2]}
5... Qxe5 {[%clk 0:02:47.1]} 6. O-O {[%clk 0:02:53.4]} 6... d5 {[%clk
0:02:35.6]} 7. d4 {[%clk 0:02:52.3]} 7... Qd6 {[%clk 0:02:33.2]} 8. Bd3 {[%clk
0:02:52.3]} 8... Be7 {[%clk 0:02:31.9]} 9. Re1 {[%clk 0:02:50]} 9... O-O {[%clk
0:02:31.4]} 10. Nc3 {[%clk 0:02:47.4]} 10... c6 {[%clk 0:02:31.2]} 11. Qf3
{[%clk 0:02:46.1]} 11... Bf6 {[%clk 0:02:27.6]} 12. Bf4 {[%clk 0:02:41]} 12...
Qb4 {[%clk 0:02:27.4]} 13. Be5 {[%clk 0:02:36.5]} 13... Bxe5 {[%clk 0:02:24.9]}
14. Rxe5 {[%clk 0:02:33.7]} 14... Qxd4 {[%clk 0:02:21.1]} 15. Rae1 {[%clk
0:02:26.9]} 15... Nd7 {[%clk 0:02:16.6]} 16. Re8 {[%clk 0:02:01.6]} 16... Nf6
{[%clk 0:02:08.7]} 17. Rxf8+ {[%clk 0:02:01]} 17... Kxf8 {[%clk 0:02:09.6]} 18.
Qg3 {[%clk 0:01:58.7]} 18... Be6 {[%clk 0:01:52.7]} 19. h3 {[%clk 0:01:58.5]}
19... Qb4 {[%clk 0:01:40.9]} 20. Qe3 {[%clk 0:01:40.4]} 20... Qxb2 {[%clk
0:01:30.8]} 21. Qd4 {[%clk 0:01:29.1]} 21... Kg8 {[%clk 0:01:25.4]} 22. Rb1
{[%clk 0:01:22]} 22... Qa3 {[%clk 0:01:24.1]} 23. Rxb7 {[%clk 0:01:17.2]} 23...
c5 {[%clk 0:01:10.3]} 24. Qf4 {[%clk 0:01:15.6]} 24... Re8 {[%clk 0:01:02.9]}
25. Nb5 {[%clk 0:01:12.6]} 25... Qxa2 {[%clk 0:01:00.7]} 26. Nc7 {[%clk
0:01:08]} 26... Rf8 {[%clk 0:00:56.2]} 27. Nxe6 {[%clk 0:00:49.3]} 27... fxe6
{[%clk 0:00:57.1]} 28. Qe5 {[%clk 0:00:49.6]} 28... d4 {[%clk 0:00:49.4]} 29.
Qc7 {[%clk 0:00:42.3]} 29... Ne8 {[%clk 0:00:48.9]} 30. Qe7 {[%clk 0:00:29.9]}
30... Qd5 {[%clk 0:00:45.5]} 31. Rd7 {[%clk 0:00:29.6]} 31... Qe5 {[%clk
0:00:43.6]} 32. Bxh7+ {[%clk 0:00:29.2]} 32... Kxh7 {[%clk 0:00:43]} 33. Qxf8
{[%clk 0:00:29.7]} 33... Qe1+ {[%clk 0:00:42.3]} 34. Kh2 {[%clk 0:00:29.9]}
34... Qe5+ {[%clk 0:00:41.8]} 35. f4 {[%clk 0:00:30.2]} 35... Qe4 {[%clk
0:00:39]} 36. Rf7 {[%clk 0:00:28.3]} 36... Qg6 {[%clk 0:00:32.5]} 37. Qxe8
{[%clk 0:00:26.9]} 37... a5 {[%clk 0:00:33.1]} 38. Rf8 {[%clk 0:00:25]} 38...
Qxe8 {[%clk 0:00:30.5]} 39. Rxe8 {[%clk 0:00:25.9]} 39... Kg6 {[%clk 0:00:30]}
40. Rc8 {[%clk 0:00:25.3]} 40... Kf5 {[%clk 0:00:30.9]} 41. Rxc5+ {[%clk
0:00:25.4]} 41... Kxf4 {[%clk 0:00:31.6]} 42. Rxa5 {[%clk 0:00:25.9]} 42... e5
{[%clk 0:00:32.2]} 43. Kg1 {[%clk 0:00:26.2]} 43... e4 {[%clk 0:00:31.5]} 44.
Kf2 {[%clk 0:00:26.7]} 1-0